Cogmind - Beta 16 @@@ ROGUE MODE // 2025.12.19 @ 02:19:38 Player: War__Prophet Result: Destroyed by Y-54 Guardian with Gatling Laser Performance ------------- Evolutions (3) 1500 Regions Visited (6) 1200 Robots Destroyed (18) 90 Value Destroyed (453) 453 Prototype IDs (1) 20 Alien Tech Used (0) 0 Bonus (285) 285 TOTAL SCORE: 3548 Bonus ------- Follower Combat Kills 85 Entered Garrisons 200 Cogmind --------- Core Integrity 0/700 Matter 161/300 Energy 100/100 System Corruption 0% Temperature Cool (7) Movement Flying (35) Location -7/Factory Parts ------- > --- POWER (1) -------- (None) > --- PROPULSION (8) --- Improved Cesium-ion Thruster > --- UTILITY (2) ------ Core Analyzer Microactuators > --- WEAPON (2) ------- Great Maul > --- INVENTORY (5) ---- Light Nuclear Core Arc Projector Gauss Rifle Gauss Rifle Great Maul Peak State ------------ > --- POWER ------------ Light Nuclear Core > --- PROPULSION ------- Aluminum Leg Aluminum Leg Improved Cesium-ion Thruster > --- UTILITY ---------- Core Analyzer > --- WEAPON ----------- Great Maul > --- INVENTORY -------- Light Ion Engine Arc Projector Gauss Rifle Gauss Rifle Great Maul [Rating: 18] Favorites ----------- Power Ion Engine Engine Ion Engine Power Core Light Nuclear Core Propulsion VTOL Module Treads Light Treads Leg Aluminum Leg Wheel Wheel Flight Unit VTOL Module Utility Small Storage Unit Device ECM Suite Storage Small Storage Unit Processor Core Analyzer Protection Improved Weapon Shielding Weapon Light Assault Rifle Energy Gun Pulse Rifle Ballistic Gun Light Assault Rifle Impact Weapon Great Maul Build | -11 -10 -9 -9 -9 -8 -7 ------- Run | Yrd Mat Mat Sto Gar Mat Fac Slots Evolved 6 | . . 2 . . 2 2 Power . | . . . . . . . Propulsion 6 | . . 2 . . 2 2 Utility . | . . . . . . . Weapon . | . . . . . . . Parts Attached 42 | 8 2 7 . 9 . 16 Power 6 | 1 . 1 . 3 . 1 Engine 5 | 1 . 1 . 3 . . Core 1 | . . . . . . 1 Reactor . | . . . . . . . Propulsion 21 | 4 . 6 . 6 . 5 Treads 2 | 2 . . . . . . Leg 2 | . . . . . . 2 Wheel 3 | 2 . . . . . 1 Hover . | . . . . . . . Flight 14 | . . 6 . 6 . 2 Utility 6 | 1 1 . . . . 4 Device 2 | . 1 . . . . 1 Storage 1 | 1 . . . . . . Processor 1 | . . . . . . 1 Hackware . | . . . . . . . Protection 2 | . . . . . . 2 Artifact . | . . . . . . . Weapon 9 | 2 1 . . . . 6 Energy Gun 2 | . . . . . . 2 Energy Cannon . | . . . . . . . Ballistic Gun 6 | 2 1 . . . . 3 Ballistic Cannon . | . . . . . . . Launcher . | . . . . . . . Special Weapon . | . . . . . . . Impact Weapon 1 | . . . . . . 1 Slashing Weapon . | . . . . . . . Piercing Weapon . | . . . . . . . Special Melee Weapon . | . . . . . . . Unidentified Prototypes 1 | . . . . . . 1 Parts Lost 20 | . 1 2 2 10 3 2 Power 4 | . 1 . 1 . 1 1 Propulsion 13 | . . 2 1 7 2 1 Utility . | . . . . . . . Weapon 3 | . . . . 3 . . Highest Loss Streak 6 | . 1 2 2 6 3 1 To Critical Strikes . | . . . . . . . Average Backups 2 | . 2 3 1 2 3 4 Power . | . 1 . . . 2 1 Propulsion 1 | . 1 2 . 1 . . Utility . | . . . . . 1 . Weapon . | . . 1 1 . . 1 Tool/Special . | . . . . . . . Unused Backups 3 | . . . . . . 3 Power . | . . . . . . . Propulsion 1 | . . . . . . 1 Utility . | . . . . . . . Weapon 2 | . . . . . . 2 Tool/Special . | . . . . . . . Average Slot Usage (%) 69 | . 98 95 94 82 30 21 Engine 7 | . 14 9 8 7 6 1 Wheel 4 | . 28 1 . . . 3 Flight 22 | . . 39 41 38 15 . Device 8 | . 12 11 11 10 . 1 Storage 8 | . 14 11 11 11 8 . Ballistic Gun 15 | . 28 22 22 14 . 5 Peak Build Rating 18 | 6 8 13 11 11 5 18 Average Rating 9 | 3 7 12 10 8 3 10 On Entrance 5 | . 6 7 11 9 4 . Avg Prop Armor Cover (%) . | . . . . . . . Naked Turns 51 | . . . . . 11 40 Heaviest Build 14 | 12 14 14 14 12 8 13 Greatest Support 40 | 40 26 26 16 16 8 28 Greatest Overweight (x) 2 | . . 1 . 2 1 2 Average Overweight (x) . | . . . . . . . Largest Inventory Capacity 8 | 8 8 8 8 8 8 5 Average Capacity 7 | 5 8 8 8 8 7 5 Most Carried 8 | 1 8 8 1 5 4 5 Average Carried 2 | . 2 3 1 2 2 4 Final Capacity 8 | 8 8 8 8 8 5 5 Final Carried 8 | 1 8 1 1 3 4 5 Class Distribution -------------------- 50% | Mutant 42% | Sprinter 4% | Scavenger-Sprinter Dominant Class ---------------- Mutant | -10/Materials Sprinter | -9/Materials Sprinter | -9/Storage Sprinter | -9/Garrison Mutant | -8/Materials Mutant | -7/Factory Resources | -11 -10 -9 -9 -9 -8 -7 ----------- Run | Yrd Mat Mat Sto Gar Mat Fac Matter Collected 537 | 217 98 . 63 35 51 73 Remotely . | . . . . . . . Salvage Created 357 | . 98 77 . 61 . 121 Parts 34 | . 11 4 . 13 . 6 Haulers Intercepted . | . . . . . . . Recyclers Shooed 1 | . . . . . 1 . Parts Field Recycled . | . . . . . . . Retrieved Matter . | . . . . . . . Parts Self-Destructed . | . . . . . . . Prevented . | . . . . . . . Parts Restored . | . . . . . . . Kills | -11 -10 -9 -9 -9 -8 -7 ------- Run | Yrd Mat Mat Sto Gar Mat Fac Combat Hostiles Destroyed 15 | . 4 3 . 5 . 3 Melee 1 | . . . . . . 1 Guns 10 | . 4 . . 5 . 1 AOE 4 | . . 3 . . . 1 Classes Destroyed 4 | . 2 2 . . . . Worker 1 | . . 1 . . . . Watcher 2 | . . 2 . . . . Swarmer 8 | . 3 . . 5 . . Grunt 7 | . 1 3 . . . 3 Best Kill Streak 6 | . 3 6 . 4 . 2 Combat Bots Only 4 | . 3 3 . 4 . 2 Max Kills in Single Turn 6 | . 1 6 . 1 . 1 Gunslinging . | . . . . . . . Exploded 3 | . . 3 . . . 1 Melee 1 | . . . . . . 1 Uniques/NPCs Destroyed . | . . . . . . . Combat | -11 -10 -9 -9 -9 -8 -7 -------- Run | Yrd Mat Mat Sto Gar Mat Fac Hostile Shots Fired 323 | . 31 42 14 96 37 103 Missed 117 | . 4 22 7 39 9 36 Hits 206 | . 27 20 7 57 28 67 Projectile 206 | . 27 20 7 57 28 67 AOE 1 | . . . . . . 1 Critical Strikes 5 | . . . . 1 2 2 Damage Taken 2606 | . 244 254 83 465 333 1227 Core 1183 | . 40 87 . 122 228 706 Absorbed by Shields 50 | . . . . 50 . . Redirected to Shielding 38 | . . . . . . 38 Core Remaining (%) 72 | 100 84 . . 47 58 . Volleys Fired 50 | . 15 3 1 19 . 12 Largest 2 | . 2 2 2 2 . 2 Hottest 118 | . 40 40 40 40 . 118 Shots Fired 88 | . 30 6 2 28 . 22 Gun 88 | . 30 6 2 28 . 22 Cannon . | . . . . . . . Launcher . | . . . . . . . Special . | . . . . . . . Kinetic 84 | . 30 6 2 28 . 18 Thermal 2 | . . . . . . 2 Explosive . | . . . . . . . Electromagnetic 2 | . . . . . . 2 Robot Hit Streak 11 | . 7 11 1 7 . 2 Robot Miss Streak 6 | . 4 2 1 4 . 6 Penetration Max . | . . . . . . . Secondary Targets 4 | . 1 . . 2 . 1 Max Gunslinging Chain 1 | . 1 . . 1 . 1 Shots Hit Robots 49 | . 18 4 1 16 . 10 Core Hits 32 | . 8 5 . 9 . 10 Critical Kills . | . . . . . . . Critical Parts Destroyed 1 | . . . . . . 1 Critical Strikes 1 | . . . . . . 1 Smash 1 | . . . . . . 1 Melee Attacks 2 | . . . . . . 2 Impact 2 | . . . . . . 2 Slashing . | . . . . . . . Piercing . | . . . . . . . Sneak Attacks . | . . . . . . . Combat Hostiles . | . . . . . . . Follow-up Attacks . | . . . . . . . Damage Inflicted 1642 | . 165 910 8 123 6 430 Guns 505 | . 159 31 8 123 . 184 Cannons . | . . . . . . . Explosions 1054 | . . 879 . . . 175 Melee 29 | . . . . . . 29 Ramming 54 | . 6 . . . 6 42 Kinetic 472 | . 159 31 8 123 . 151 Thermal 1087 | . . 879 . . . 208 Explosive . | . . . . . . . Electromagnetic . | . . . . . . . Impact 29 | . . . . . . 29 Slashing . | . . . . . . . Piercing . | . . . . . . . Highest Corruption 2 | . . . . . 2 . Average Corruption 2 | . . . . . 2 . Corruption Purged . | . . . . . . . Corruption Blocked . | . . . . . . . Overload Shots . | . . . . . . . Overflow Damage 284 | . . 152 . . . 132 Projectiles . | . . . . . . . Explosions 255 | . . 152 . . . 103 Melee 29 | . . . . . . 29 Knockbacks 1 | . 1 . . . . . Impact 1 | . 1 . . . . . Kinetic . | . . . . . . . Secondary . | . . . . . . . Self-Inflicted Damage 133 | . 3 . . . 3 127 Shots 1 | . . . . . . 1 Rammed 26 | . 1 . . . 1 24 Targets Rammed 26 | . 1 . . . 1 24 Kicked . | . . . . . . . Crushed . | . . . . . . . Highest Temperature 51 | . 6 32 23 8 . 51 Average Temperature 9 | . 6 9 14 3 . 20 Received Heat Transfer 528 | . 39 102 45 48 117 177 Siege Activations . | . . . . . . . Martial Activations . | . . . . . . . Shielding Activations . | . . . . . . . Robots Disrupted . | . . . . . . . Combat Hostiles . | . . . . . . . Robots Corrupted . | . . . . . . . Combat Hostiles . | . . . . . . . Parts Fried . | . . . . . . . Impact Corruptions 1 | . . . . . . 1 Robots Melted . | . . . . . . . Combat Hostiles . | . . . . . . . Parts Melted 1 | . . 1 . . . . Heat Transferred 674 | . . 500 . . . 174 Parts Sabotaged . | . . . . . . . Parts Stolen . | . . . . . . . Parts Stripped . | . . . . . . . Power Chain Reactions . | . . . . . . . Alert | -11 -10 -9 -9 -9 -8 -7 ------- Run | Yrd Mat Mat Sto Gar Mat Fac Maximum Alert Level 1 | . . 1 1 1 . . Low Security (%) 77 | 100 100 98 87 . 100 100 Level 1 22 | . . 1 12 100 . . Level 2 . | . . . . . . . Level 3 . | . . . . . . . Level 4 . | . . . . . . . Level 5 . | . . . . . . . High Security . | . . . . . . . Max Security . | . . . . . . . Peak Influence 388 | . 70 256 377 388 179 114 Initial 238 | . . 12 107 238 179 . Average 96 | . 29 20 169 294 32 33 Influence Increases 1215 | . 118 311 340 230 27 189 Destroy 0b10 Robot/C 440 | . 80 60 140 100 . 60 Destroy 0b10 Robot/NC 20 | . . 15 5 . . . Destroy Leader 86 | . 20 24 32 . . 10 Allied During Kill 16 | . . . 16 . . . Successful Hack 75 | . 18 33 12 . 12 . Disable Machine 75 | . . 60 . . . 15 Anti-Garrison Action 100 | . . . . 100 . . Destroy Structure 43 | . . 29 . . . 14 Partial Spotted 90 | . . . 90 . . . Lose Combat Pursuer 270 | . . 90 45 30 15 90 Influence Decreases 1141 | . 88 85 229 229 395 115 Entered New Map 485 | . . 18 149 129 189 . Time Decay 330 | . 78 47 60 . 40 105 Lost Part 176 | . 10 20 20 100 16 10 Purge Threat 150 | . . . . . 150 . Squads Dispatched 11 | . 1 2 3 . 2 3 Investigation 6 | . . 2 1 . 2 1 Extermination 1 | . . . . . . 1 Reinforcement 2 | . 1 . . . . 1 Assault 2 | . . . 2 . . . Garrison . | . . . . . . . Intercept . | . . . . . . . Searches Triggered . | . . . . . . . Construction Impeded 1 | . . . . . . 1 Haulers Reinforced . | . . . . . . . Active Scanning Responses . | . . . . . . . Cargo Convoy Interrupts . | . . . . . . . Stealth | -11 -10 -9 -9 -9 -8 -7 --------- Run | Yrd Mat Mat Sto Gar Mat Fac Distress Signals 7 | . 2 1 3 . . 1 Communications Jammed . | . . . . . . . Distress Signals . | . . . . . . . Times Spotted 105 | . 11 30 19 21 11 13 Peak Tracking Total 18 | . 4 14 18 7 8 4 Tactical Retreats 15 | . . 4 3 5 1 2 ECM-based Alert Blocks 30 | . . 7 9 12 2 . Traps | -11 -10 -9 -9 -9 -8 -7 ------- Run | Yrd Mat Mat Sto Gar Mat Fac Traps Triggered 3 | . . . . 2 . 1 Indirectly . | . . . . . . . Trap Hack Attempts . | . . . . . . . Triggered . | . . . . . . . Disarmed . | . . . . . . . Reprogrammed . | . . . . . . . Reused . | . . . . . . . Traps Extracted . | . . . . . . . Installed . | . . . . . . . Triggered . | . . . . . . . Objects Rigged 7 | . . 7 . . . . Exploded 1 | . . 1 . . . . Machines | -11 -10 -9 -9 -9 -8 -7 ---------- Run | Yrd Mat Mat Sto Gar Mat Fac Machines Disabled 5 | . . 4 . . . 1 Max in Single Turn 4 | . . 4 . . . 1 Machines Repaired . | . . . . . . . Machines Dismantled . | . . . . . . . Machines Sabotaged . | . . . . . . . Overloaded Fab Kills . | . . . . . . . Hacking | -11 -10 -9 -9 -9 -8 -7 --------- Run | Yrd Mat Mat Sto Gar Mat Fac Machines Accessed 16 | . 2 3 5 2 4 . Terminals 15 | . 2 3 4 2 4 . Fabricators . | . . . . . . . Repair Stations . | . . . . . . . Recycling Units . | . . . . . . . Scanalyzers . | . . . . . . . Garrison Access 1 | . . . 1 . . . Total Hacks 48 | . 6 10 12 5 15 . Successful 18 | . 2 3 7 . 6 . Failed 30 | . 4 7 5 5 9 . Catastrophic 7 | . . 3 . 1 3 . Database Lockouts . | . . . . . . . Manual 38 | . 7 11 9 . 11 . Terminals 46 | . 6 10 10 5 15 . Fabricators . | . . . . . . . Repair Stations . | . . . . . . . Recycling Units . | . . . . . . . Scanalyzers . | . . . . . . . Garrison Access 2 | . . . 2 . . . Terminal Hacks 4 | . . . 1 . 3 . Emergency Access Points 1 | . . . . . 1 . Unreport Threat 1 | . . . . . 1 . Locate Traps 1 | . . . 1 . . . Recall Investigation 1 | . . . . . 1 . Fabricator Hacks . | . . . . . . . Repair Station Hacks . | . . . . . . . Recycling Unit Hacks . | . . . . . . . Scanalyzer . | . . . . . . . Garrison Access Hacks 1 | . . . 1 . . . Unlock Access 1 | . . . 1 . . . Unauthorized Hacks 13 | . 2 3 5 . 3 . Terminals 13 | . 2 3 5 . 3 . Botnet 5 | . 2 2 1 . . . Detonate 1 | . . 1 . . . . Skim 7 | . . . 4 . 3 . Fabricators . | . . . . . . . Repair Stations . | . . . . . . . Recycling Units . | . . . . . . . Scanalyzers . | . . . . . . . Garrison Access . | . . . . . . . Data Cores Recovered . | . . . . . . . Used . | . . . . . . . Hacking Detections 15 | . 1 3 5 2 4 . Full Trace Events 10 | . . 3 1 2 4 . Feedback Events . | . . . . . . . Feedback Blocked . | . . . . . . . Robot Schematics Acquired . | . . . . . . . Robots Built . | . . . . . . . Authchips . | . . . . . . . Time . | . . . . . . . Total Robot Build Rating . | . . . . . . . Part Schematics Acquired . | . . . . . . . Parts Built . | . . . . . . . Authchips . | . . . . . . . Time . | . . . . . . . Total Part Build Rating . | . . . . . . . Part Studies Acquired . | . . . . . . . Parts Repaired . | . . . . . . . Time . | . . . . . . . Parts Recycled . | . . . . . . . Recycled Matter . | . . . . . . . Retrieved Matter . | . . . . . . . Retrieved Components . | . . . . . . . Parts Scanalyzed . | . . . . . . . Part Schematics Acquired . | . . . . . . . Parts Damaged . | . . . . . . . Bothacking | -11 -10 -9 -9 -9 -8 -7 ------------ Run | Yrd Mat Mat Sto Gar Mat Fac Used RIF Installer . | . . . . . . . Robots Hacked . | . . . . . . . Non-combat . | . . . . . . . Combat . | . . . . . . . Robot Hacks Applied . | . . . . . . . Relay Couplers Released . | . . . . . . . Fabnet Peak Effective % . | . . . . . . . Robots Rewired . | . . . . . . . Allies Hacked . | . . . . . . . Hacks Repelled . | . . . . . . . Allies | -11 -10 -9 -9 -9 -8 -7 -------- Run | Yrd Mat Mat Sto Gar Mat Fac Total Allies 2 | . . . 2 . . . Largest Group 2 | . . . 2 . . . Highest-Rated Group 62 | . . . 62 . . . Highest-Rated Ally 31 | . . . 31 . . . Total Orders . | . . . . . . . Ally Attacks 16 | . . . 16 . . . Total Damage 321 | . . . 321 . . . Kills 8 | . . . 8 . . . Allies Corrupted . | . . . . . . . Allies Melted . | . . . . . . . Intel | -11 -10 -9 -9 -9 -8 -7 ------- Run | Yrd Mat Mat Sto Gar Mat Fac Active Infowar (turns) 495 | . 159 74 37 146 11 68 ECM 495 | . 159 74 37 146 11 68 Robot Analysis Total . | . . . . . . . Derelict Logs Recovered . | . . . . . . . Drone Launches . | . . . . . . . Drone Recoveries . | . . . . . . . Exploration | -11 -10 -9 -9 -9 -8 -7 ------------- Run | Yrd Mat Mat Sto Gar Mat Fac Turns Passed 1291 | 76 170 254 122 275 104 290 Spaces Moved 1706 | 67 134 383 310 345 209 258 Core 127 | 5 . . . . 23 99 Treads 5 | 5 . . . . . . Legs 34 | . . . . . . 34 Wheels 267 | 57 134 3 . . . 73 Hover . | . . . . . . . Flight 1273 | . . 380 310 345 186 52 Fastest Speed 26 | 50 90 26 28 28 37 35 Average Speed 44 | 91 90 26 28 31 39 74 Slowest Speed 160 | 160 90 110 30 112 120 150 Overloaded Moves . | . . . . . . . Propulsion Burnouts . | . . . . . . . Robots Hopped 43 | . . 19 12 10 2 . Potential Cave-ins . | . . . . . . . Cave-ins Triggered . | . . . . . . . Exploration Rate (%) 27 | 4 26 37 48 42 24 8 Regions Visited 6 Branch Regions 1 Pre-discovered Areas 1 | . . . 1 . . . Known Exits Taken 1 | . . . 1 . . . Unknown Exits Taken 4 | 1 1 1 . . 1 . Scrap Searched . | . . . . . . . Spaces Dug . | . . . . . . . Terrain Destroyed 46 | . . 28 . . . 18 Melee . | . . . . . . . Projectile . | . . . . . . . AOE 46 | . . 28 . . . 18 Terrain Rammed . | . . . . . . . Walls Destroyed . | . . . . . . . Machines Disabled . | . . . . . . . Actions | -11 -10 -9 -9 -9 -8 -7 --------- Run | Yrd Mat Mat Sto Gar Mat Fac Total 2105 | 79 158 511 329 472 227 329 Wait 267 | . . 134 31 83 17 2 Move 1621 | 66 133 349 288 323 204 258 Hop 34 | . . 14 9 9 2 . Pick Up 15 | 1 7 . . 2 1 4 Fast Attach 26 | 8 . . . 3 . 15 Attach 18 | . 1 7 . 5 1 4 Detach 9 | 2 . 2 . 1 1 3 Swap 6 | . 1 . . 5 . . Drop 9 | 2 . 2 . . . 5 Fire 50 | . 15 3 1 19 . 12 Melee 2 | . . . . . . 2 Ram 26 | . 1 . . . 1 24 Kick . | . . . . . . . Crush . | . . . . . . . Escape Stasis 22 | . . . . 22 . . Rewire . | . . . . . . . Trap . | . . . . . . . Miscellaneous . | . . . . . . . Route ------- -11/Scrapyard -10/Materials (discovered 2 exits: *Mat / [*Min]) -9/Materials (discovered 3 exits: [*Min] / *Sto x2) -9/Storage -9/Garrison (discovered 2 exits: *Mat x2) -8/Materials -7/Factory (discovered 1 exit: [*Low]) History --------- Turn | Location | Event 48 | -11/Scrapyard | Discovered new exit (range 16) 77 | -11/Scrapyard | Entered Materials 197 | -10/Materials | Discovered new exit (range 7) 234 | -10/Materials | Discovered new exit (range 12) 247 | -10/Materials | Entered another Materials area 247 | -9/Materials | Evolved 2 slots: Propulsion x2 420 | -9/Materials | Discovered new exit (range 7) 425 | -9/Materials | Discovered new exit (range 8) 490 | -9/Materials | Discovered new exit (range 12) 501 | -9/Materials | Entered Storage 554 | -9/Storage | Learned location of Armory (-4) 558 | -9/Storage | Met a pair of Derelict thieves 586 | -9/Storage | Build established: Sprinter 623 | -9/Storage | Identified exit to Garrison 623 | -9/Storage | Entered Garrison 639 | -9/Garrison | Triggered checkpoint 642 | -9/Garrison | Triggered checkpoint 737 | -9/Garrison | Triggered checkpoint 816 | -9/Garrison | Discovered new exit (range 14) 820 | -9/Garrison | Attempted to access garrison exit controls, blocked by remote lockdown 860 | -9/Garrison | Lost 6 parts (4n2w) 868 | -9/Garrison | Triggered checkpoint 874 | -9/Garrison | Core integrity fell below 50% 894 | -9/Garrison | Discovered new exit (range 12) 898 | -9/Garrison | Entered Materials 898 | -8/Materials | Evolved 2 slots: Propulsion x2 991 | -8/Materials | Released all parts (1) 993 | -8/Materials | Discovered new exit (range 16) 1002 | -8/Materials | Entered Factory 1002 | -7/Factory | Evolved 2 slots: Propulsion x2 1018 | -7/Factory | Lost 3 parts (1p2n) 1042 | -7/Factory | Released all parts (2) 1056 | -7/Factory | Core integrity fell below 50% 1163 | -7/Factory | Core integrity fell below 20% 1177 | -7/Factory | Released all parts (5) 1187 | -7/Factory | Build established: Mutant 1292 | -7/Factory | Discovered new exit (range 13) 1292 | -7/Factory | Destroyed by Y-54 Guardian with Gatling Laser Last Messages --------------- 01242_ Acquired Core Analyzer. 01242_ U-05 Engineer lays Concrete. 01244_ U-05 Engineer builds a Door. 01244_ U-05 Engineer lays Concrete. 01245_ K-01 Serf collects debris. 01245_ U-05 Engineer lays Concrete. 01249_ K-01 Serf collects debris. 01249_ U-05 Engineer lays Concrete. 01252_ K-01 Serf collects debris. 01252_ U-05 Engineer lays Concrete. 01255_ Acquired Gauss Rifle. 01270_ Acquired Prototype Flight Unit. 01270_ Identified Imp. Cesium-ion Thruster. 01272_ Dropped Aluminum Leg. 01273_ Dropped Lgt. Nuclear Core. 01276_ Dropped Lgt. Ion Engine. 01278_ Acquired Lgt. Nuclear Core. 01281_ Acquired Microactuators. 01291_ K-01 Serf cleans the Construction Platform. 01292_ EXIT=FOUND Map ----- +----------------------------------------------------+ | ??????????????????????????????# """ """ #?????? | | ?????????????????????????###### """ """ #?????? | | ?????????????????????????+ # #?????? | | ?????????????????????????# # *""" #?????? | | ?????????????????????????# # """ "" #?????? | | ?????????????????????????# # """ """#?????? | | ?????????????????????????# # S"#?????? | | ?????????????????????????# # """#?????? | | ?????????????????????????+ # [ """#?????? | | ?????????????????????????# # #?????? | | ?????????????????????????# ##+####+#+########?? | | ?????????????????????????# #?? | | ?????????????????????????# ######## #?? | | ?????????????????????????# #??????# #?? | | ?????????????????????????# #??????# ^ #?? | | ?????????????????????????# #??????# #?? | | ?????????????????????????#+######## ###?? | | ?????????????????????????# # " #?? | | ?????????????????????????# """" !# "#### | | ?????????????????????????# """" # " | | ?????????????????????????# """" #^ " | | ?????????????????????????# """" + ! " | | ?????????????????????????# """" # " | | ?????????????????????????# """" # " | | ?????????????????###+##### """" # %[ + | | ?????????? Y[ @ k k # #""""# | | ?????????????????#############/#### # # | | ???????????????????????????????#??# ###### | | ??????????????????????????????????# #????# | | ??????????????????????????????????# #????# | | ??????????????????????????????????# #????# | | ???????????????????????????### #### ########## | | ???????????????????????????# | | ???????????????????????????# | | ???????????????????????????# | | ???????????????????????????# ![ | | ???????????????????????? [!= | | ????????????????????????##############+########### | | ?????????????????????????????????????????????????? | | ?????????????????????????????????????????????????? | | ?????????????????????????????????????????????????? | | ?????????????????????????????????????????????????? | | ?????????????????????????????????????????????????? | | ?????????????????????????????????????????????????? | | ?????????????????????????????????????????????????? | | ?????????????????????????????????????????????????? | | ?????????????????????????????????????????????????? | | ?????????????????????????????????????????????????? | | ?????????????????????????????????????????????????? | | ?????????????????????????????????????????????????? | +----------------------------------------------------+ Best States ------------- Heat Dissipation 34 Energy Generation 14 Energy Capacity 250 Matter Stores 300 Matter Capacity 300 Sight Range 16 Terrain Scan Density 10 ECM Strength 1 Armor Coverage 600 Weapon Shielding 66 Melee Speed Boost 20 Evasion (%) 64 Core Analysis 6 Recoil Reduction 2 Item Schematics ----------------- None Robot Schematics ------------------ None Fabricated ------------ Nothing Repaired ---------- Nothing Studied --------- None Alien Tech Used ----------------- None Achievements -------------- None Challenges ------------ None Game ------ Seed AssemblyCoordinationRail Manual? 0 Play Time 00:17:14 Cumulative 52.5 hours Start 2025.12.19 @ 02:04:41 End 2025.12.19 @ 02:19:38 Sessions 1 Manual Loads 0 Difficulty Rogue Special Mode None Game No. 202 Rogue 202 Adventurer 0 Explorer 0 Win Type - Total 0 Types 0/0/0/0/0/0/0/0/0/0 Lore% 12 Gallery% 38 Achievement% 25 Wizard Run 0 Options --------- Layout 1 ASCII 0 Keyboard 1 Movement Vi Keybinds 0 Fullscreen 1 Font 16/SmallcapsGlow Map View 55x38 Zoom Use 0% Tactical HUD 1 Map Filters NONE Filters NONE Steam X RUN: 55c8328f-9873-4fa5-8d80-1a354c205254